bitfinex/quotes_ETHUSD_20240729
["timestamp","ask_amount","ask_price","bid_price","bid_amount"]
[1722213674243,2.42358,3300.9,3300.5,0.08775462]
[1722213674460,2.42348,3301.1,3300.5,0.08775462]
[1722213674678,0.55,3301.0,3300.5,0.08775462]
[1722213674862,2.42358,3300.9,3300.5,0.08775462]
[1722213675410,2.4238,3300.6,3300.5,0.08775462]
[1722213675704,3.27118,3300.6,3300.5,0.08775462]
[1722213676948,5.69498,3300.6,3300.5,0.08775462]
[1722213677187,2.42402,3300.3,3300.2,3.73976263]
[1722213677359,2.4241,3300.2,3299.7,3.73976263]
[1722213677699,2.85707912,3300.2,3299.7,3.73976263]
[1722213677843,2.97422,3300.1,3299.7,3.73976263]
[1722213678365,0.55,3300.1,3299.7,3.73976263]
[1722213680584,0.55,3300.3,3299.7,3.73976263]
[1722213680750,0.55,3300.4,3299.6,7.28]
[1722213680960,1.0127039,3300.4,3299.6,7.28]
[1722213681167,2.91854292,3300.4,3299.6,7.28]
[1722213681487,2.917931,3300.4,3299.6,7.28]
[1722213681842,1.9052271,3300.3,3299.6,7.28]
[1722213682061,1.0841921,3300.2,3299.6,7.28]
[1722213682264,0.55,3300.2,3299.6,7.28]
[1722213682666,1.9052271,3300.3,3299.6,7.28]
[1722213683093,1.9052271,3300.2,3299.6,7.28]
[1722213684609,0.55,3300.1,3299.6,7.28]
[1722213684767,2.45496194,3300.1,3299.6,7.28]
[1722213684964,1.90496194,3300.1,3299.6,7.28]
[1722213685277,1.904859,3300.1,3299.6,7.28]
[1722213686392,2.3377509,3300.1,3299.6,7.28]
[1722213686603,1.904859,3300.0,3299.6,7.28]
[1722213686804,1.904859,3300.0,3299.4,3.73976263]
[1722213687002,1.904859,3299.9,3299.2,7.28]
[1722213687973,1.904859,3299.9,3299.3,0.08859242]
[1722213688202,2.62347509,3299.9,3299.3,0.08859242]
[1722213688519,0.71861609,3299.9,3299.3,0.08859242]
[1722213688700,1.904859,3300.0,3299.3,0.08859242]
[1722213688872,2.454859,3299.9,3299.3,0.08859242]
[1722213689389,1.904859,3299.8,3299.3,0.08859242]
[1722213689574,0.55,3299.7,3299.3,0.08859242]
[1722213689776,0.55,3299.7,3299.2,7.28]
[1722213689974,0.55,3299.7,3299.4,0.08855213]
[1722213690198,2.9427759,3299.7,3299.4,0.08855213]
[1722213690400,2.9427759,3299.7,3299.2,7.28]
[1722213690673,2.42412,3300.2,3299.2,7.28]
[1722213690674,1.904859,3299.9,3299.2,7.28]
[1722213690870,1.904859,3300.0,3299.3,0.0887294]
[1722213691070,1.90405516,3300.1,3299.3,0.0887294]
[1722213691396,1.90405516,3300.1,3299.4,0.73687294]
[1722213691568,1.90405516,3300.1,3299.3,0.0887294]
[1722213691766,1.90405516,3300.1,3299.5,0.0885794]
[1722213692072,1.90405516,3300.1,3299.2,7.28]
[1722213692073,1.90405516,3300.1,3299.6,0.08851286]
[1722213692320,1.90405516,3300.1,3299.2,7.28]
[1722213692611,1.90405516,3300.1,3299.7,0.08844256]
[1722213692820,4.64540769,3300.4,3299.2,8.86696126]
[1722213692821,1.90405516,3300.0,3299.2,8.86696126]
[1722213693274,1.90405516,3300.0,3299.3,0.08870876]
[1722213693475,1.90405516,3300.1,3299.3,0.08870876]
[1722213693922,1.90425833,3300.1,3299.3,0.08870876]
[1722213694079,1.90425833,3300.1,3299.3,0.94119353]
[1722213694416,1.90414014,3300.1,3299.3,0.94119353]
[1722213694634,1.90414014,3300.0,3299.3,0.94119353]
[1722213694835,1.9042153,3300.0,3299.3,0.08870876]
[1722213695299,2.42401,3300.4,3299.3,0.08870876]
[1722213695300,1.9042153,3300.1,3299.3,0.08870876]
[1722213696292,1.9042153,3300.0,3299.3,0.08870876]
[1722213696488,1.9042153,3300.0,3299.3,1.49726276]
[1722213696691,2.42402,3300.3,3299.3,0.08870876]
[1722213696889,1.90451553,3300.0,3299.3,0.08870876]
[1722213697505,1.90485224,3300.0,3299.3,0.08870876]
[1722213698714,1.90485224,3300.1,3299.3,0.08870876]
[1722213698920,1.90485224,3300.0,3299.3,1.33856864]
[1722213699340,1.90485224,3300.1,3299.3,1.33856864]
[1722213699708,1.90485224,3300.1,3299.4,2.42468]
[1722213700016,1.90485224,3300.1,3299.4,2.51081014]
[1722213700190,1.90485224,3300.1,3299.6,4.869]
[1722213700392,1.90485224,3300.4,3299.8,2.42438]
[1722213700623,0.31665195,3300.6,3299.9,5.1293]
[1722213700828,5.56816166,3301.4,3299.9,5.1293]
[1722213700829,1.90551572,3300.7,3300.1,2.42411]
[1722213701032,1.90551572,3300.7,3300.2,2.42408]
[1722213701236,1.90551572,3300.9,3300.3,5.613819]
[1722213701391,1.90551572,3301.0,3300.3,5.613819]
[1722213701588,1.90551572,3301.0,3300.4,0.0854104]
[1722213702194,1.90551572,3301.1,3300.4,0.0854104]
[1722213702397,1.90551572,3301.0,3300.4,0.0854104]
[1722213702625,1.90551572,3301.0,3300.5,0.32752294]
[1722213703134,1.11643224,3301.9,3301.2,2.42332]
[1722213703345,2.42224,3302.8,3301.2,2.42332]
[1722213703346,2.22310168,3302.4,3301.3,2.705]
[1722213703494,0.22231017,3302.3,3301.5,2.42311]
[1722213703836,2.22021366,3302.5,3301.5,2.42311]
[1722213704035,2.22021366,3302.6,3301.6,0.08436498]
[1722213704391,5.04474739,3302.9,3301.6,0.08436498]
[1722213704392,2.22021366,3302.7,3301.6,0.08436498]
[1722213704614,2.22021366,3302.6,3301.6,0.08436498]
[1722213704801,0.22202137,3302.5,3301.6,0.08436498]
[1722213705490,2.22021366,3302.7,3301.6,0.08436498]
[1722213706102,2.4222,3302.8,3301.6,0.08436498]
[1722213706103,2.47456768,3303.0,3301.6,0.08436498]
[1722213706321,2.21787278,3302.8,3301.7,4.71208]
[1722213706528,5.21787278,3302.9,3301.7,4.71208]
[1722213706832,3.0,3303.0,3301.8,2.50700149]
[1722213707018,1.092197,3302.9,3301.9,2.42284]
[1722213707219,0.542197,3302.9,3302.0,2.42272]
[1722213707545,3.05254122,3303.2,3302.0,2.50668234]
[1722213707893,2.21692078,3303.3,3302.1,0.06056193]
[1722213708148,2.21692078,3303.4,3302.2,2.42262]
[1722213708292,2.21692078,3303.6,3302.3,4.71164]
[1722213708494,2.4216,3303.6,3302.3,2.37280305]
[1722213708725,0.24741323,3303.5,3302.3,4.79534305]
[1722213708929,0.24741323,3303.5,3302.4,2.42246]
[1722213709095,0.24741323,3303.5,3302.4,2.50609662]
[1722213709294,0.24741323,3303.5,3302.4,0.08363662]
[1722213709810,0.24741323,3303.5,3302.4,2.50603662]
[1722213710139,3.05253233,3303.7,3302.4,2.50603662]
[1722213710346,2.21255353,3304.1,3302.8,2.42217]
[1722213710635,2.42123,3304.1,3302.8,7.28]
[1722213710796,0.469103,3304.0,3302.9,0.08264466]
[1722213711149,2.890423,3304.0,3302.9,0.08264466]
[1722213711295,0.469103,3304.0,3302.9,0.08264466]
[1722213711843,0.55,3303.9,3302.9,0.08264466]
[1722213716565,0.55,3303.9,3303.0,2.4962]
[1722213716884,0.55,3303.9,3303.1,0.08251184]
[1722213720849,0.3440433,3303.8,3303.1,0.08251184]
[1722213721047,0.55,3303.7,3303.1,0.08251184]
[1722213722154,0.3440433,3303.8,3303.1,0.08251184]
[1722213722358,3.05256126,3304.3,3303.1,0.08251184]
[1722213722574,0.55,3304.2,3303.1,0.08251184]
[1722213723086,0.55,3304.2,3303.1,2.50440184]
[1722213723255,0.55,3304.2,3303.1,2.56494455]
[1722213723453,3.55,3304.4,3303.2,2.42188]
[1722213723769,3.55,3304.4,3303.0,4.91823]
[1722213723770,2.42117,3304.2,3303.3,0.08237904]
[1722213724085,0.597095,3304.3,3303.0,2.4962]
[1722213724086,0.55,3304.1,3303.0,2.4962]
[1722213724255,0.55,3304.1,3303.4,0.08231265]
[1722213724453,0.55,3304.2,3303.0,4.91822]
[1722213724672,0.55,3304.2,3303.5,0.08224626]
[1722213724886,2.42149,3303.8,3303.2,7.28]
[1722213725085,0.55,3303.7,3303.6,0.08186902]
[1722213725395,2.97152,3303.7,3303.6,0.08187089]
[1722213725545,2.97152,3303.7,3303.2,7.28]
[1722213725546,2.42178,3303.4,3303.2,7.28]
[1722213725738,2.42193,3303.2,3302.6,3.73976263]
[1722213726308,0.55,3303.1,3302.6,3.73976263]
[1722213727004,0.55,3303.3,3302.6,3.73976263]
[1722213727227,3.213996,3303.3,3302.6,3.73976263]
[1722213727359,2.97182,3303.3,3302.6,3.73976263]
[1722213727903,0.31666308,3303.2,3302.6,3.73976263]
[1722213728058,0.55,3303.1,3302.6,3.73976263]
[1722213728721,0.55,3303.1,3302.4,11.01976263]
[1722213729018,0.55,3303.1,3302.4,7.28]
[1722213729821,0.87884831,3303.1,3302.4,7.28]
[1722213731739,0.55,3303.1,3302.4,7.28]
[1722213731945,0.31666308,3303.2,3302.4,7.28]
[1722213732262,0.31666308,3303.2,3302.5,2.3599]
[1722213733036,0.31666308,3303.2,3302.6,0.08268473]
[1722213735292,0.31666308,3303.2,3302.6,3.08268473]
[1722213735498,0.31666308,3303.2,3302.7,0.54425847]
[1722213735924,0.31666308,3303.2,3302.8,0.08255189]
[1722213736295,0.31666308,3303.2,3302.7,0.54425847]
[1722213736596,0.31666308,3303.2,3302.8,0.08264553]
[1722213736799,0.31666308,3303.2,3302.7,0.54425847]
[1722213737239,0.31666308,3303.2,3302.8,0.08264553]
[1722213737744,0.31666308,3303.2,3302.5,5.3599]
[1722213738603,0.31666308,3303.2,3302.6,0.08277837]
[1722213739500,0.31666308,3303.2,3302.6,2.50509837]
[1722213739821,0.31666308,3303.2,3302.6,0.08277837]
[1722213740128,0.31666308,3303.2,3302.6,1.86718921]
[1722213740339,0.31666308,3303.2,3302.6,4.86718921]
[1722213743907,0.31666308,3303.2,3302.6,7.28950921]
[1722213744611,0.31666308,3303.2,3302.6,4.86718921]
[1722213748960,0.31666308,3303.2,3302.6,7.28949921]
[1722213749135,0.31666308,3303.2,3302.7,1.17836268]
[1722213749520,0.31666308,3303.2,3302.8,0.08264553]
[1722213749722,0.31666308,3303.2,3302.6,3.0]
[1722213749923,0.31666308,3303.2,3302.5,5.3599]
[1722213750125,0.31666308,3303.2,3302.7,0.08271194]
[1722213750320,0.31666308,3303.2,3302.6,0.08277837]
[1722213750623,0.31666308,3303.2,3302.7,0.08271194]
[1722213750927,0.31666308,3303.2,3302.5,5.3599]
[1722213751462,0.31666308,3303.2,3302.6,0.08275777]
[1722213752057,0.55,3303.1,3302.4,7.28]
[1722213752363,0.55,3303.1,3302.7,0.08265763]
[1722213752567,0.55,3303.1,3302.4,7.28]
[1722213752723,0.55120032,3303.0,3302.8,0.08259122]
[1722213752922,0.55120032,3303.0,3302.4,7.28]
[1722213753447,0.55120032,3303.0,3302.5,0.08279048]
[1722213755360,0.55,3303.1,3302.5,0.08279048]
[1722213756362,2.22578958,3303.0,3302.5,0.08279048]
[1722213756523,2.77578958,3303.1,3302.5,0.08279048]
[1722213756919,0.55,3303.1,3302.5,0.08279048]
[1722213757247,0.30924527,3303.0,3302.5,0.08279048]
[1722213757677,2.53503485,3303.0,3302.5,0.08279048]
[1722213758381,2.22578958,3302.9,3302.5,0.08279048]
[1722213759686,2.22578958,3302.8,3302.5,0.08279048]
[1722213760187,2.97197,3303.1,3302.5,0.08279048]
[1722213760188,0.55,3302.7,3302.5,0.08279048]
[1722213760387,0.55,3302.7,3302.2,3.73976263]
[1722213760388,2.2257116,3302.7,3302.2,3.73976263]
[1722213760568,2.2257116,3302.6,3302.3,0.08296268]
[1722213760749,2.2257116,3302.6,3302.2,3.73976263]
[1722213760949,2.2257116,3302.6,3302.3,0.08296268]
[1722213761150,2.2257116,3302.6,3302.2,3.73976263]
[1722213761488,2.2257116,3302.6,3302.3,0.08296268]
[1722213761665,2.2257116,3302.7,3302.3,0.08296268]
[1722213761859,2.2257116,3302.7,3302.2,3.73976263]
[1722213762181,2.2257116,3302.7,3302.3,0.08296268]
[1722213762384,2.2257116,3302.7,3302.2,3.73976263]
[1722213762588,2.2257116,3302.8,3302.3,0.45693894]
[1722213762787,2.2257116,3302.8,3302.3,0.08296268]
[1722213762990,2.2257116,3302.8,3302.2,3.73976263]
[1722213763162,2.2257116,3302.8,3302.3,0.08313686]
[1722213763491,2.2257116,3302.8,3302.2,3.73976263]
[1722213763690,2.2257116,3302.8,3302.4,0.08307042]
[1722213763891,2.2257116,3302.8,3302.3,0.08313686]
[1722213764057,2.2257116,3302.9,3302.5,0.08300399]
[1722213764394,2.22492837,3302.8,3302.6,0.08293757]
[1722213764578,2.22492837,3302.8,3302.3,3.73976263]
[1722213764788,2.42204,3303.0,3302.4,0.08307042]
[1722213764992,2.22502612,3302.8,3302.4,0.08307042]
[1722213766381,2.22502612,3302.7,3302.4,0.08307042]
[1722213766569,2.22502612,3302.8,3302.4,0.08307042]
[1722213766910,2.22494913,3302.8,3302.4,0.08307042]
[1722213767805,0.31666988,3302.7,3302.4,0.08307042]
[1722213767963,4.64738052,3302.5,3302.4,0.08307042]
[1722213768164,2.9724,3302.5,3302.4,0.08307042]
[1722213768762,5.60065824,3302.5,3302.4,0.08307042]
[1722213769616,2.9724,3302.5,3302.4,0.08307042]
[1722213769772,4.04528581,3302.5,3302.4,0.08307042]
[1722213770382,1.62288581,3302.5,3302.4,0.08307042]
[1722213770604,2.22443995,3302.5,3302.0,3.73976263]
[1722213770819,2.22443995,3302.6,3302.1,0.08338965]
[1722213770994,2.22432186,3302.6,3302.1,0.08338965]
[1722213771422,2.54099174,3302.7,3302.1,0.08338965]
[1722213772124,2.22432186,3302.6,3302.1,0.08338965]
[1722213772480,2.54099174,3302.7,3302.1,0.08338965]
[1722213772716,2.22432186,3302.6,3302.1,0.08338965]
[1722213773580,2.72064003,3302.6,3302.1,0.08338965]
[1722213774177,2.7203674,3302.6,3302.1,0.08338965]
[1722213774584,0.49631817,3302.6,3302.1,0.08338965]
[1722213774783,2.22396858,3302.6,3302.1,0.08338965]
[1722213776813,2.22396858,3302.6,3301.9,3.73976263]
[1722213776999,2.22396858,3302.6,3302.0,0.08352166]
[1722213777384,2.22360289,3302.6,3302.0,0.08352166]
[1722213779932,4.64594289,3302.6,3302.0,0.08352166]
[1722213780090,0.49626128,3302.5,3302.0,0.08352166]
[1722213781089,2.71952567,3302.5,3302.0,0.08352166]
[1722213781290,0.49626128,3302.5,3302.1,1.125]
[1722213781601,0.49626128,3302.5,3302.2,0.0833513]
[1722213781805,2.71952567,3302.5,3302.2,0.0833513]
[1722213782129,0.75341657,3302.4,3302.2,0.0833513]
[1722213784630,0.75341657,3302.4,3302.0,3.73976263]
[1722213784631,5.19570135,3302.3,3302.0,3.73976263]
[1722213784832,4.64584135,3302.2,3302.1,0.08342336]
[1722213785037,7.61853135,3302.2,3302.1,0.08342336]
[1722213785332,7.61853135,3302.2,3301.6,3.73976263]
[1722213785333,4.84598,3301.7,3301.6,3.73976263]
[1722213785632,4.84598,3301.7,3301.4,7.28]
[1722213785633,2.42314,3301.5,3300.9,7.28]
[1722213785949,2.42314,3301.5,3300.8,4.86476263]
[1722213786235,2.22379694,3301.5,3301.0,1.125]
[1722213786389,2.2765365,3301.8,3301.4,1.125]
[1722213786586,2.22379694,3302.0,3301.6,1.125]
[1722213786792,3.09051162,3302.2,3301.8,1.125]
[1722213787016,0.86671468,3302.2,3301.8,1.125]
[1722213787232,1.41802184,3302.2,3301.8,1.125]
[1722213787535,0.86671468,3302.2,3301.8,1.125]
[1722213788676,0.31671468,3302.2,3301.8,1.125]
[1722213788938,0.31671468,3302.2,3302.0,1.125]
[1722213789288,0.31671468,3302.2,3301.7,2.7]
[1722213790492,0.31671468,3302.2,3301.6,3.73976263]
[1722213790915,0.31671468,3302.2,3301.6,4.59145189]
[1722213792826,0.31671468,3302.2,3301.7,0.08377725]
[1722213794478,0.31671468,3302.2,3301.5,3.73976263]
[1722213794775,0.31671468,3302.2,3301.8,0.0836958]
[1722213795005,0.31671468,3302.2,3301.5,3.73976263]
[1722213795425,0.31671468,3302.2,3301.6,0.08382872]
[1722213795826,4.6817,3302.1,3301.6,0.08382872]
[1722213796172,2.42287,3301.9,3301.6,0.08382872]
[1722213796366,0.55,3301.8,3301.6,0.08382872]
[1722213796745,0.55,3301.9,3301.6,0.08382872]
[1722213797266,2.77376397,3301.9,3301.6,0.08382872]
[1722213797471,0.5196544,3301.8,3301.6,0.08382872]
[1722213798130,5.19675397,3301.7,3301.6,0.08382872]
[1722213798335,10.10844397,3301.7,3301.6,0.08382872]
[1722213798672,2.42346,3301.1,3300.6,7.28]
[1722213798870,2.42346,3301.1,3300.5,3.73976263]
[1722213798871,2.77538627,3301.0,3300.5,3.73976263]
[1722213799030,2.77538627,3301.0,3300.6,0.08460601]
[1722213799031,0.55,3301.0,3300.6,0.08460601]
[1722213799628,0.55,3301.1,3300.6,0.08460601]
[1722213799874,4.91171,3301.7,3300.6,0.08460601]
[1722213799875,2.22538627,3301.3,3300.6,0.08460601]
[1722213800278,2.4479249,3301.3,3300.6,0.08460601]
[1722213800475,4.8712249,3301.3,3300.6,0.08460601]
[1722213800634,0.31674155,3301.2,3300.6,0.08460601]
[1722213801496,0.55,3301.1,3300.6,0.08460601]
[1722213803499,0.55,3301.1,3300.4,3.73976263]
[1722213803706,0.90125902,3301.1,3300.7,0.08463324]
[1722213803884,3.32470902,3301.1,3300.7,0.08463324]
[1722213804095,3.32470902,3301.1,3300.4,3.73976263]
[1722213804404,3.32470902,3301.1,3300.8,0.08456674]
[1722213804617,3.32470902,3301.1,3300.4,3.73976263]
[1722213804794,0.36414506,3301.0,3300.4,3.73976263]
[1722213805157,0.36414506,3301.0,3300.5,0.08502874]
[1722213805400,0.90125902,3301.1,3300.5,0.08502874]
[1722213805587,0.31674155,3301.2,3300.6,2.7]
[1722213805907,0.31674155,3301.2,3300.7,0.08491448]
[1722213811428,0.31674155,3301.2,3300.5,3.73976263]
[1722213811429,2.2795,3301.0,3300.5,3.73976263]
[1722213811571,2.42366,3300.8,3300.3,3.73976263]
[1722213811991,0.55,3300.7,3300.4,0.08503899]
[1722213814237,2.42387,3300.5,3300.4,0.08503899]
[1722213814550,2.97387,3300.5,3300.4,0.08503899]
[1722213814756,0.55,3300.5,3300.4,0.08503899]
[1722213814961,0.847386,3300.5,3300.4,0.08503899]
[1722213815261,3.271256,3300.5,3299.6,7.28]
[1722213815459,3.271256,3300.5,3299.7,0.08559471]
[1722213815460,2.97396,3300.4,3299.7,0.08559471]
[1722213815607,2.42408,3300.3,3299.7,0.08559471]
[1722213815812,0.3167599,3300.3,3299.7,0.08559471]
[1722213816544,2.7407799,3300.3,3299.7,0.08559471]
[1722213817657,3.09959649,3300.3,3299.7,0.08559471]
[1722213818157,2.42417,3300.1,3299.7,0.08559471]
[1722213818342,0.55,3300.0,3299.7,0.08559471]
[1722213818511,2.97425,3300.0,3299.7,0.08559471]
[1722213819134,0.55,3300.0,3299.7,0.08559471]
[1722213819319,0.55,3300.1,3299.7,0.08559471]
[1722213819524,1.08523665,3300.1,3299.7,0.08559471]
[1722213819764,2.42429,3300.0,3299.7,0.08559471]
[1722213819934,0.55,3299.9,3299.7,0.08559471]
[1722213820138,2.97431,3299.9,3299.7,0.08559471]
[1722213820355,2.96424,3299.8,3299.7,0.08559471]
[1722213820556,1.08986,3299.8,3299.7,0.08559471]
[1722213821060,1.08986,3299.8,3299.7,0.08586484]
[1722213821233,1.08986,3299.8,3299.5,3.73976263]
[1722213821555,0.55,3299.7,3299.6,0.08593139]
[1722213822565,0.55,3300.0,3299.6,0.08593139]
[1722213822715,3.09963649,3300.3,3299.6,0.08593139]
[1722213822716,0.55,3300.2,3299.6,0.08593139]
[1722213823173,2.97409,3300.2,3299.6,0.08593139]
[1722213823457,0.55,3300.2,3299.6,0.08593139]
[1722213824718,2.42424,3300.0,3299.6,0.08593139]
[1722213824958,3.216754,3299.9,3299.6,0.08593139]
[1722213827354,2.42441,3299.8,3299.6,0.08593139]
[1722213827673,0.55,3299.7,3299.6,0.08593139]
[1722213827841,2.97446,3299.7,3299.6,0.08593139]
[1722213828851,0.55,3299.7,3299.6,0.08593139]
[1722213829057,0.55,3299.8,3299.6,0.08593139]
[1722213829331,0.8166754,3299.8,3299.6,0.08593139]
[1722213830340,0.8166754,3299.8,3299.1,3.73976263]
[1722213830672,0.55,3299.8,3299.1,3.73976263]
[1722213830864,0.55,3299.8,3299.2,0.08635895]
[1722213831163,0.31677681,3299.7,3299.2,0.08635895]
[1722213833039,0.55,3299.6,3299.2,0.08635895]
[1722213837864,2.97453,3299.6,3299.2,0.08635895]
[1722213838071,0.32913068,3299.5,3299.2,0.08635895]
[1722213839270,0.55,3299.6,3299.2,0.08635895]
[1722213840838,0.31677681,3299.7,3299.2,2.47615895]
[1722213841946,0.31677681,3299.7,3299.5,2.7]
[1722213842277,0.31677681,3299.7,3299.6,0.08295807]
[1722213843070,2.42366,3300.8,3299.6,2.37295807]
[1722213843247,0.31678892,3300.1,3299.9,2.7]
[1722213843447,2.42374,3300.7,3300.0,0.08269193]
[1722213843835,0.3167905,3300.1,3300.0,0.08269193]
[1722213844150,2.42374,3300.7,3300.0,0.08269193]
[1722213844465,0.31679152,3300.1,3300.0,0.08269193]
[1722213844668,5.42374,3300.7,3300.0,0.08269193]
[1722213844669,3.0,3300.7,3300.0,0.08269193]
[1722213844847,4.12430778,3300.6,3300.0,0.08269193]
[1722213845047,1.70050778,3300.6,3300.0,0.08269193]
[1722213846268,2.42396,3300.4,3300.0,0.08269193]
[1722213846450,4.12432778,3300.6,3299.6,9.57]
[1722213846636,1.70050778,3300.6,3299.6,9.57]
[1722213846835,4.12431778,3300.6,3299.7,0.08277143]
[1722213847070,1.17679963,3300.5,3299.7,0.08277143]
[1722213847274,0.55,3300.4,3299.7,0.08277143]
[1722213848741,2.42403,3300.3,3299.7,0.08277143]
[1722213849235,0.55,3300.2,3299.7,0.08277143]
[1722213849437,2.97414,3300.2,3299.7,0.08277143]
[1722213849638,0.539817,3300.1,3299.7,0.08277143]
[1722213849877,0.55,3300.0,3299.7,0.08277143]
[1722213850539,2.97425,3300.0,3299.7,0.08277143]
[1722213851547,2.42431,3299.9,3299.7,0.08277143]
[1722213851693,2.97438,3299.8,3299.7,0.08277143]
[1722213851928,2.42453,3299.6,3299.5,3.73976263]
[1722213852052,2.97453,3299.6,3299.5,3.73976263]
[1722213852655,5.19730987,3299.6,3299.5,3.73976263]
[1722213852853,0.55,3299.6,3299.5,3.82254704]
[1722213853296,2.77277987,3299.6,3299.5,3.82254704]
[1722213853593,3.53494486,3299.6,3299.5,3.82254704]
[1722213853749,1.31216499,3299.6,3299.5,3.82254704]
[1722213853951,3.53560697,3299.6,3299.5,3.82254704]
[1722213854182,0.55,3299.6,3299.5,3.82254704]
[1722213855698,2.77396524,3299.6,3299.5,3.82254704]
[1722213856378,2.22396524,3299.6,3299.5,3.82254704]
[1722213856591,2.22396524,3299.8,3299.5,0.08278441]
[1722213856782,0.77239652,3299.7,3299.5,0.08278441]
[1722213856957,0.77239652,3299.7,3299.1,3.73976263]
[1722213857154,2.77396524,3299.7,3299.6,0.08290741]
[1722213857397,2.77396524,3299.7,3299.0,7.28]
[1722213857696,2.77600375,3299.7,3299.6,0.08290741]
[1722213858084,2.77604932,3299.7,3299.6,0.08290741]
[1722213858404,2.77604932,3299.7,3299.0,7.28]
[1722213858405,1.07003793,3299.7,3299.0,7.28]
[1722213858556,1.07003793,3299.7,3299.6,0.08289615]
[1722213858757,1.07003793,3299.7,3299.0,7.28]
[1722213859082,2.77650421,3299.7,3299.0,7.28]
[1722213859879,2.77650421,3299.7,3299.3,2.3081]
[1722213859880,2.22650421,3299.7,3299.3,2.3081]
[1722213860195,5.43143166,3300.3,3299.3,2.3081]
[1722213860196,0.31675961,3299.6,3299.3,2.3081]
[1722213861093,0.31675961,3299.6,3299.4,2.42463]
[1722213861323,0.31675961,3299.6,3299.5,0.473273]
[1722213861863,0.31675961,3299.6,3299.5,2.897873]
[1722213862070,0.31675961,3299.6,3299.5,0.473273]
[1722213864296,2.22721086,3300.0,3299.3,2.3081]
[1722213864456,2.22721086,3299.9,3299.3,2.3081]
[1722213865392,4.65153086,3299.9,3299.0,7.28]
[1722213865571,1.01515309,3299.8,3299.1,3.0]
[1722213866108,3.24236395,3299.8,3299.1,3.0]
[1722213866282,1.01515309,3299.8,3299.1,3.0]
[1722213866606,2.77721086,3299.8,3299.0,7.28]
[1722213867279,2.77745922,3299.8,3299.0,7.28]
[1722213867756,2.22745922,3299.7,3299.1,0.08311822]
[1722213868307,2.22745922,3299.6,3299.1,0.08311822]
[1722213868489,2.74765114,3299.6,3299.1,0.08311822]
[1722213868806,2.22745922,3299.5,3299.1,0.08311822]
[1722213868977,2.74765114,3299.6,3299.1,0.08311822]
[1722213870170,0.52019192,3299.6,3299.1,0.08311822]
[1722213870384,2.74793418,3299.6,3299.1,0.08311822]
[1722213870909,2.74793436,3299.6,3299.1,0.08311822]
[1722213872012,2.74498188,3299.5,3299.1,0.08311822]
[1722213872214,4.65247244,3299.4,3299.1,0.08311822]
[1722213872518,2.22774244,3299.2,3299.1,0.08311822]
[1722213873630,2.2277498,3299.2,3299.1,0.08311822]
[1722213873981,7.6274098,3299.2,3299.1,0.08311822]
[1722213874178,6.16240098,3299.2,3299.1,0.08311822]
[1722213874521,2.42497,3299.0,3298.9,3.73976263]
[1722213874726,2.97497,3299.0,3298.4,3.73976263]
[1722213875017,2.42525,3298.7,3298.4,3.73976263]
[1722213875172,2.89057021,3298.6,3298.4,3.73976263]
[1722213875610,0.55,3298.5,3298.4,3.73976263]
[1722213875819,2.97534,3298.5,3298.4,3.73976263]
[1722213876414,2.97534,3298.5,3297.9,3.73976263]
[1722213876718,2.97534,3298.5,3297.8,3.73976263]
[1722213878289,2.42549,3298.3,3297.8,3.73976263]
[1722213878518,0.55,3298.2,3297.8,3.73976263]
[1722213878990,2.97557,3298.2,3297.8,3.73976263]
[1722213879198,2.42568,3298.1,3297.8,3.73976263]
[1722213879429,0.55,3298.0,3297.8,3.73976263]
[1722213880029,0.55,3298.3,3297.8,3.73976263]
[1722213880525,0.55,3298.3,3297.7,9.98]
[1722213880839,0.55,3298.3,3297.8,2.3892]
[1722213881018,0.55,3298.3,3298.1,2.7]
[1722213881805,0.55,3298.3,3297.8,2.3892]
[1722213882830,0.55,3298.3,3297.9,0.07956399]
[1722213885005,2.8307,3298.3,3297.7,9.98]
[1722213885302,0.55730019,3298.2,3298.0,0.07684828]
[1722213885508,0.55,3298.1,3297.4,3.73976263]
[1722213885718,2.42584,3297.9,3297.4,3.73976263]
[1722213886040,2.97586,3297.8,3297.4,3.73976263]
[1722213886248,2.42601,3297.6,3297.2,3.73976263]
[1722213886446,2.42608,3297.5,3297.1,0.00087]
[1722213886592,2.42623,3297.3,3297.1,0.00087]
[1722213887097,0.55,3297.2,3297.1,0.00087]
[1722213887329,2.9763,3297.2,3297.1,0.00087]
[1722213887544,3.27393,3297.2,3297.1,0.00087]
[1722213889812,0.84763,3297.2,3297.1,0.00087]
[1722213891046,0.55,3297.2,3297.1,0.00087]
[1722213891636,2.9763,3297.2,3297.1,0.00087]
[1722213893838,0.55,3297.2,3297.1,0.00087]
[1722213894224,2.4263,3297.2,3297.1,0.00087]
[1722213894419,2.9763,3297.2,3297.1,0.00087]
[1722213894620,3.32893,3297.2,3297.1,0.00087]
[1722213895652,5.75523,3297.2,3297.1,0.00087]
[1722213896624,3.32893,3297.2,3297.1,0.00087]
[1722213898249,3.32893,3297.2,3297.1,0.07857026]
[1722213898559,5.75523,3297.2,3297.1,0.07857026]
[1722213898909,3.32893,3297.2,3297.1,0.07857026]
[1722213899641,5.75523,3297.2,3297.1,0.07857026]
[1722213900348,8.02103,3297.2,3297.1,0.07857026]
[1722213900553,5.59473,3297.2,3297.1,0.07857026]
[1722213901252,8.02103,3297.2,3297.1,0.07857026]
[1722213901615,5.59473,3297.2,3297.1,0.07857026]
[1722213903366,8.02103,3297.2,3297.1,0.07857026]
[1722213903982,5.59473,3297.2,3297.1,0.07857026]
[1722213904456,3.16843,3297.2,3297.1,0.07857026]
[1722213904771,3.32893,3297.2,3297.1,0.07857026]
[1722213904967,5.75523,3297.2,3297.1,0.07857026]
[1722213905274,8.13253,3297.2,3297.1,0.07857026]
[1722213905433,10.55883,3297.2,3297.1,0.07857026]
[1722213906635,8.13253,3297.2,3297.1,0.07857026]
[1722213909371,5.75523,3297.2,3297.1,0.07857026]
[1722213909528,3.32893,3297.2,3297.1,0.07857026]
[1722213909732,0.35263,3297.2,3297.1,0.07857026]
[1722213909928,2.42624,3297.3,3297.1,0.07857026]
[1722213910368,3.0,3297.4,3297.1,0.07857026]
[1722213910679,4.82061,3297.9,3297.1,0.07857026]
[1722213910979,3.641998,3298.5,3297.6,2.7]